fUSD/lending_fUSD_20240523
["ID","MTS","AMOUNT","RATE_DAILY","PERIOD"]
[327746187,1716426649022,-1000.0,0.00021917,2]
[327746188,1716426649031,-509.64180345,0.00021917,2]
[327746189,1716426649040,-500.0,0.00021917,2]
[327746190,1716426649049,-500.0,0.00021917,2]
[327746191,1716426649059,-510.258826,0.00021917,2]
[327746192,1716426649068,-512.44051071,0.00021917,2]
[327746193,1716426649077,-500.0,0.00021917,2]
[327746194,1716426649086,-500.0,0.00021917,2]
[327746195,1716426649096,-503.59531237,0.00021917,2]
[327746196,1716426649106,-500.0,0.00021917,2]
[327746197,1716426649115,-512.30890924,0.00021917,2]
[327746198,1716426649124,-617.89,0.00021917,2]
[327746199,1716426649133,-512.12291022,0.00021917,2]
[327746200,1716426649143,-415.32883662,0.00021917,2]
[327746201,1716426649152,-504.29241675,0.00021917,2]
[327746202,1716426649162,-500.0,0.00021917,2]
[327746203,1716426649171,-500.0,0.00021917,2]
[327746204,1716426649180,-508.08996007,0.00021917,2]
[327746205,1716426649190,-632.40845156,0.00021917,2]
[327746206,1716426649199,-500.0,0.00021917,2]
[327746207,1716426649209,-500.0,0.00021917,2]
[327746208,1716426649219,-500.0,0.00021917,2]
[327746209,1716426649228,-510.02507105,0.00021917,2]
[327746210,1716426649237,-500.0,0.00021917,2]
[327746211,1716426649247,-224.14877384,0.00021917,2]
[327746212,1716426649256,-500.0,0.00021917,2]
[327746213,1716426649265,-500.0,0.00021917,2]
[327746214,1716426649274,-500.0,0.00021917,2]
[327746215,1716426649283,-500.0,0.00021917,2]
[327746216,1716426649293,-151.0,0.00021917,2]
[327746217,1716426649302,-151.0,0.00021917,2]
[327746218,1716426649311,-513.25567561,0.00021917,2]
[327746219,1716426649321,-500.0,0.00021917,2]
[327746220,1716426649330,-508.0396135,0.00021917,2]
[327746221,1716426649339,-508.29736014,0.00021917,2]
[327746222,1716426649348,-198.58154717,0.00021917,2]
[327746223,1716426649358,-549.16,0.00021917,2]
[327746224,1716426649367,-198.74892637,0.00021917,2]
[327746225,1716426649376,-475.19233461,0.00021917,2]
[327746226,1716426649386,-508.06150179,0.00021917,2]
[327746227,1716426649395,-500.0,0.00021917,2]
[327746228,1716426649404,-504.01958065,0.00021917,2]
[327746229,1716426649413,-500.0,0.00021917,2]
[327746230,1716426649422,-500.0,0.00021917,2]
[327746231,1716426649431,-151.0,0.00021917,2]
[327746232,1716426649440,-151.0,0.00021917,2]
[327746233,1716426649450,-500.0,0.00021917,2]
[327746234,1716426649459,-500.0,0.00021917,2]
[327746235,1716426649468,-500.0,0.00021917,2]
[327746236,1716426649477,-500.0,0.00021917,2]
[327746237,1716426649486,-500.0,0.00021917,2]
[327746238,1716426649495,-500.0,0.00021917,2]
[327746239,1716426649503,-500.0,0.00021917,2]
[327746240,1716426649512,-151.0,0.00021917,2]
[327746241,1716426649522,-151.0,0.00021917,2]
[327746242,1716426649531,-500.0,0.00021917,2]
[327746243,1716426649541,-500.0,0.00021917,2]
[327746244,1716426649550,-151.0,0.00021917,2]
[327746245,1716426649559,-247.373907,0.00021917,2]
[327746246,1716426649569,-500.0,0.00021917,2]
[327746247,1716426649578,-500.0,0.00021917,2]
[327746248,1716426649588,-500.0,0.00021917,2]
[327746249,1716426649597,-502.41318928,0.00021917,2]
[327746250,1716426649607,-500.0,0.00021917,2]
[327746251,1716426649616,-509.64352104,0.00021917,2]
[327746252,1716426649626,-500.0,0.00021917,2]
[327746253,1716426649635,-506.11641492,0.00021917,2]
[327746254,1716426649645,-992.3,0.00021917,2]
[327746255,1716426649654,-500.0,0.00021917,2]
[327746256,1716426649664,-500.0,0.00021917,2]
[327746257,1716426649673,-500.0,0.00021917,2]
[327746258,1716426649683,-500.0,0.00021917,2]
[327746259,1716426649692,-500.0,0.00021917,2]
[327746260,1716426649702,-768.32,0.00021917,2]
[327746261,1716426649711,-500.0,0.00021917,2]
[327746262,1716426649721,-511.87748596,0.00021917,2]
[327746263,1716426649735,-500.0,0.00021917,2]
[327746264,1716426649745,-512.60992732,0.00021917,2]
[327746265,1716426649754,-500.0,0.00021917,2]
[327746266,1716426649764,-500.0,0.00021917,2]
[327746267,1716426649776,-979.16,0.00021917,2]
[327746268,1716426649785,-500.0,0.00021917,2]
[327746269,1716426649795,-571.41245113,0.00021917,2]
[327746270,1716426649804,-500.0,0.00021917,2]
[327746271,1716426649813,-2285.56,0.00021917,2]
[327746272,1716426649823,-800.63,0.00021917,2]
[327746273,1716426649832,-529.45,0.00021917,2]
[327746274,1716426649843,-507.94060265,0.00021917,2]
[327746275,1716426649854,-500.0,0.00021917,2]
[327746276,1716426649864,-503.24143344,0.00021917,2]
[327746277,1716426649874,-976.31367454,0.00021917,2]
[327746278,1716426649884,-510.01760063,0.00021917,2]
[327746279,1716426649894,-500.0,0.00021917,2]
[327746280,1716426649904,-500.0,0.00021917,2]
[327746281,1716426649914,-500.0,0.00021917,2]
[327746282,1716426649924,-608.73,0.00021917,2]
[327746283,1716426649933,-500.0,0.00021917,2]
[327746284,1716426649943,-500.0,0.00021917,2]
[327746285,1716426649952,-500.0,0.00021917,2]
[327746286,1716426649962,-881.49,0.00021917,2]
[327746287,1716426649971,-500.0,0.00021917,2]
[327746288,1716426649981,-500.0,0.00021917,2]
[327746289,1716426649990,-500.0,0.00021917,2]
[327746290,1716426650000,-500.0,0.00021917,2]
[327746291,1716426650009,-504.47819028,0.00021917,2]
[327746292,1716426650019,-544.88886563,0.00021917,2]
[327746293,1716426650028,-151.0,0.00021917,2]
[327746294,1716426650038,-151.0,0.00021917,2]
[327746295,1716426650047,-500.0,0.00021917,2]
[327746296,1716426650057,-500.0,0.00021917,2]
[327746297,1716426650066,-505.12984402,0.00021917,2]
[327746298,1716426650075,-500.0,0.00021917,2]
[327746299,1716426650085,-500.0,0.00021917,2]
[327746300,1716426650093,-500.0,0.00021917,2]
[327746301,1716426650104,-304.7451427,0.00021917,2]
[327746302,1716426650113,-500.0,0.00021917,2]
[327746303,1716426650122,-500.0,0.00021917,2]
[327746304,1716426650258,-200.416726,0.00021917,2]
[327746305,1716426650267,-967.86,0.00021917,2]
[327746306,1716426650276,-505.2093092,0.00021917,2]
[327746307,1716426650285,-500.0,0.00021917,2]
[327746308,1716426650295,-500.0,0.00021917,2]
[327746309,1716426650304,-509.43431245,0.00021917,2]
[327746310,1716426650313,-500.0,0.00021917,2]
[327746311,1716426650322,-500.0,0.00021917,2]
[327746312,1716426650331,-500.0,0.00021917,2]
[327746313,1716426650340,-2409.32,0.00021917,2]
[327746314,1716426650349,-500.0,0.00021917,2]
[327746315,1716426650362,-500.0,0.00021917,2]
[327746316,1716426650371,-500.0,0.00021917,2]
[327746317,1716426650380,-510.27850963,0.00021917,2]
[327746318,1716426650390,-500.0,0.00021917,2]
[327746319,1716426650399,-151.0,0.00021917,2]
[327746320,1716426650409,-500.0,0.00021917,2]
[327746321,1716426650418,-151.0,0.00021917,2]
[327746322,1716426650427,-152.604209,0.00021917,2]
[327746323,1716426650438,-608.71398821,0.00021917,2]
[327746324,1716426650448,-507.81888256,0.00021917,2]
[327746325,1716426650457,-500.0,0.00021917,2]
[327746326,1716426650466,-500.0,0.00021917,2]
[327746327,1716426650476,-151.0,0.00021917,2]
[327746328,1716426650485,-500.0,0.00021917,2]
[327746329,1716426650495,-500.0,0.00021917,2]
[327746330,1716426650504,-151.0,0.00021917,2]
[327746331,1716426650513,-500.0,0.00021917,2]
[327746332,1716426650522,-507.44405478,0.00021917,2]
[327746333,1716426650532,-500.0,0.00021917,2]
[327746334,1716426650541,-500.0,0.00021917,2]
[327746335,1716426650550,-500.0,0.00021917,2]
[327746336,1716426650560,-987.36,0.00021917,2]
[327746337,1716426650572,-151.0,0.00021917,2]
[327746338,1716426650582,-151.0,0.00021917,2]
[327746339,1716426650591,-494.02549084,0.00021917,2]
[327746340,1716426650600,-508.28543559,0.00021917,2]
[327746341,1716426650611,-151.0,0.00021917,2]
[327746342,1716426650620,-151.935606,0.00021917,2]
[327746343,1716426650630,-500.0,0.00021917,2]
[327746344,1716426650639,-397.69010374,0.00021917,2]
[327746345,1716426650649,-500.0,0.00021917,2]
[327746346,1716426650659,-151.0,0.00021917,2]
[327746347,1716426650668,-531.24200124,0.00021917,2]
[327746348,1716426650677,-152.658258,0.00021917,2]
[327746349,1716426650686,-500.0,0.00021917,2]
[327746350,1716426650695,-500.0,0.00021917,2]
[327746351,1716426650704,-505.42756308,0.00021917,2]
[327746352,1716426650713,-500.0,0.00021917,2]
[327746353,1716426650722,-500.0,0.00021917,2]
[327746354,1716426650733,-300.0,0.00021917,2]
[327746355,1716426650743,-500.0,0.00021917,2]
[327746356,1716426650753,-505.41694406,0.00021917,2]
[327746357,1716426650762,-500.0,0.00021917,2]
[327746358,1716426650772,-624.99,0.00021917,2]
[327746359,1716426650783,-500.0,0.00021917,2]
[327746360,1716426650794,-500.0,0.00021917,2]
[327746361,1716426650803,-505.22446439,0.00021917,2]
[327746362,1716426650816,-151.0,0.00021917,2]
[327746363,1716426650826,-151.710343,0.00021917,2]
[327746364,1716426650835,-500.0,0.00021917,2]
[327746365,1716426650845,-505.67972242,0.00021917,2]
[327746366,1716426650854,-877.35,0.00021917,2]
[327746367,1716426650863,-877.35,0.00021917,2]
[327746368,1716426650872,-877.35,0.00021917,2]
[327746369,1716426650882,-877.35,0.00021917,2]
[327746370,1716426650891,-877.35,0.00021917,2]
[327746371,1716426650900,-514.31960045,0.00021917,2]
[327746372,1716426650909,-877.35,0.00021917,2]
[327746373,1716426650918,-877.35,0.00021917,2]
[327746374,1716426650928,-877.35,0.00021917,2]
[327746375,1716426650937,-500.0,0.00021917,2]
[327746376,1716426650946,-877.35,0.00021917,2]
[327746377,1716426650955,-500.0,0.00021917,2]
[327746378,1716426650964,-512.166874,0.00021917,2]
[327746379,1716426650973,-500.0,0.00021917,2]
[327746380,1716426650982,-500.0,0.00021917,2]
[327746381,1716426650991,-500.0,0.00021917,2]
[327746382,1716426651000,-500.0,0.00021917,2]
[327746383,1716426651010,-517.15347898,0.00021917,2]
[327746384,1716426651019,-574.26239257,0.00021917,2]
[327746385,1716426651028,-500.0,0.00021917,2]
[327746386,1716426651037,-512.88737065,0.00021917,2]
[327746387,1716426651046,-500.0,0.00021917,2]
[327746388,1716426651056,-504.72832226,0.00021917,2]
[327746389,1716426651065,-500.0,0.00021917,2]
[327746390,1716426651074,-151.0,0.00021917,2]
[327746391,1716426651083,-151.0,0.00021917,2]
[327746392,1716426651092,-500.0,0.00021917,2]
[327746393,1716426651102,-500.0,0.00021917,2]
[327746394,1716426651111,-500.0,0.00021917,2]
[327746395,1716426651120,-500.0,0.00021917,2]
[327746396,1716426651130,-500.0,0.00021917,2]
[327746397,1716426651139,-500.0,0.00021917,2]
[327746398,1716426651148,-500.0,0.00021917,2]
[327746399,1716426651157,-507.2,0.00021917,2]
[327746400,1716426651166,-500.0,0.00021917,2]
[327746401,1716426651175,-500.0,0.00021917,2]
[327746402,1716426651185,-500.0,0.00021917,2]
[327746403,1716426651194,-500.0,0.00021917,2]
[327746404,1716426651203,-500.0,0.00021917,2]
[327746405,1716426651212,-500.0,0.00021917,2]
[327746406,1716426651221,-500.0,0.00021917,2]
[327746407,1716426651231,-500.0,0.00021917,2]
[327746408,1716426651240,-500.0,0.00021917,2]
[327746409,1716426651249,-500.0,0.00021917,2]
[327746410,1716426651259,-500.0,0.00021917,2]
[327746411,1716426651268,-500.0,0.00021917,2]
[327746412,1716426651277,-500.0,0.00021917,2]
[327746413,1716426651286,-500.0,0.00021917,2]
[327746414,1716426651295,-500.0,0.00021917,2]
[327746415,1716426651304,-500.0,0.00021917,2]
[327746416,1716426651313,-500.0,0.00021917,2]
[327746417,1716426651322,-500.0,0.00021917,2]
[327746418,1716426651331,-729.09,0.00021917,2]
[327746419,1716426651341,-565.45391725,0.00021917,2]
[327746420,1716426651350,-500.0,0.00021917,2]
[327746421,1716426651360,-500.0,0.00021917,2]
[327746422,1716426651369,-500.0,0.00021917,2]
[327746423,1716426651378,-500.0,0.00021917,2]
[327746424,1716426651387,-500.0,0.00021917,2]
[327746425,1716426651396,-509.19698022,0.00021917,2]
[327746426,1716426651405,-500.0,0.00021917,2]
[327746427,1716426651416,-500.0,0.00021917,2]
[327746428,1716426651426,-500.0,0.00021917,2]
[327746429,1716426651435,-500.0,0.00021917,2]
[327746430,1716426651444,-504.38620703,0.00021917,2]
[327746431,1716426651454,-500.0,0.00021917,2]
[327746432,1716426651463,-500.0,0.00021917,2]
[327746433,1716426651472,-500.0,0.00021917,2]
[327746434,1716426651482,-500.0,0.00021917,2]
[327746435,1716426651491,-589.99,0.00021917,2]
[327746436,1716426651500,-380.42346422,0.00021917,2]
[327746437,1716426651509,-882.94,0.00021917,2]
[327746438,1716426651518,-500.0,0.00021917,2]
[327746439,1716426651527,-500.0,0.00021917,2]
[327746440,1716426651537,-151.0,0.00021917,2]
[327746441,1716426651545,-183.086212,0.00021917,2]
[327746442,1716426651555,-500.0,0.00021917,2]
[327746443,1716426651564,-518.07747532,0.00021917,2]
[327746444,1716426651573,-500.0,0.00021917,2]
[327746445,1716426651582,-510.34763144,0.00021917,2]
[327746446,1716426651591,-500.0,0.00021917,2]
[327746447,1716426651600,-500.0,0.00021917,2]
[327746448,1716426651610,-500.0,0.00021917,2]
[327746449,1716426651620,-500.0,0.00021917,2]
[327746450,1716426651629,-500.0,0.00021917,2]
[327746451,1716426651638,-507.21817111,0.00021917,2]
[327746452,1716426651647,-611.45,0.00021917,2]
[327746453,1716426651656,-500.0,0.00021917,2]
[327746454,1716426651665,-500.0,0.00021917,2]
[327746455,1716426651674,-500.0,0.00021917,2]
[327746456,1716426651684,-500.0,0.00021917,2]
[327746457,1716426651693,-500.0,0.00021917,2]
[327746458,1716426651702,-732.92,0.00021917,2]
[327746459,1716426651711,-500.0,0.00021917,2]
[327746460,1716426651720,-500.0,0.00021917,14]
[327746461,1716426651731,-500.0,0.00021917,2]
[327746462,1716426651742,-500.0,0.00021917,2]
[327746463,1716426651751,-518.85004111,0.00021917,2]
[327746464,1716426651760,-500.0,0.00021917,2]
[327746465,1716426651771,-500.0,0.00021917,2]
[327746466,1716426651779,-500.0,0.00021917,2]
[327746467,1716426651789,-500.0,0.00021917,2]
[327746468,1716426651798,-507.23257406,0.00021917,2]
[327746469,1716426651807,-151.0,0.00021917,2]
[327746470,1716426651818,-151.0,0.00021917,2]
[327746471,1716426651827,-500.0,0.00021917,2]
[327746472,1716426651836,-500.0,0.00021917,2]
[327746473,1716426651845,-500.0,0.00021917,2]
[327746474,1716426651855,-509.75039399,0.00021917,2]
[327746475,1716426651863,-500.0,0.00021917,2]
[327746476,1716426651872,-500.0,0.00021917,2]
[327746477,1716426651881,-500.0,0.00021917,2]
[327746478,1716426651890,-500.0,0.00021917,2]
[327746479,1716426651900,-500.0,0.00021917,2]
[327746480,1716426651909,-500.0,0.00021917,2]
[327746481,1716426651918,-500.0,0.00021917,2]
[327746482,1716426651927,-500.0,0.00021917,2]
[327746483,1716426651936,-507.43734235,0.00021917,2]
[327746484,1716426651945,-500.0,0.00021917,2]
[327746485,1716426651954,-500.0,0.00021917,2]
[327746486,1716426651963,-500.0,0.00021917,2]
[327746487,1716426651972,-500.0,0.00021917,2]
[327746488,1716426651981,-151.0,0.00021917,2]
[327746489,1716426651990,-512.27879051,0.00021917,2]
[327746490,1716426651999,-500.0,0.00021917,2]
[327746491,1716426652008,-151.0,0.00021917,2]
[327746492,1716426652017,-500.0,0.00021917,2]
[327746493,1716426652026,-500.0,0.00021917,2]
[327746494,1716426652035,-500.0,0.00021917,2]
[327746495,1716426652162,-500.0,0.00021917,2]
[327746496,1716426652171,-262.2090498,0.00021917,2]
[327746497,1716426652180,-500.0,0.00021917,2]
[327746498,1716426652190,-500.0,0.00021917,2]
[327746499,1716426652198,-500.0,0.00021917,2]
[327746500,1716426652207,-500.0,0.00021917,2]
[327746501,1716426652216,-500.0,0.00021917,2]
[327746502,1716426652226,-151.0,0.00021917,2]
[327746503,1716426652234,-151.0,0.00021917,2]
[327746504,1716426652243,-500.0,0.00021917,2]
[327746505,1716426652252,-500.0,0.00021917,2]
[327746506,1716426652261,-156.002864,0.00021917,2]
[327746507,1716426652270,-151.0,0.00021917,2]
[327746508,1716426652279,-500.0,0.00021917,2]
[327746509,1716426652288,-500.0,0.00021917,2]
[327746510,1716426652297,-500.0,0.00021917,2]
[327746511,1716426652306,-500.0,0.00021917,2]
[327746512,1716426652315,-500.0,0.00021917,2]
[327746513,1716426652323,-151.0,0.00021917,2]
[327746514,1716426652332,-668.73,0.00021917,2]
[327746515,1716426652341,-500.0,0.00021917,2]
[327746516,1716426652350,-500.0,0.00021917,2]
[327746517,1716426652360,-500.0,0.00021917,2]
[327746518,1716426652370,-500.0,0.00021917,2]
[327746519,1716426652379,-500.0,0.00021917,2]
[327746520,1716426652388,-500.0,0.00021917,2]
[327746521,1716426652398,-500.0,0.00021917,2]
[327746522,1716426652407,-560.24,0.00021917,2]
[327746523,1716426652415,-500.0,0.00021917,2]
[327746524,1716426652424,-500.0,0.00021917,2]
[327746525,1716426652434,-500.0,0.00021917,2]
[327746526,1716426652443,-500.0,0.00021917,2]
[327746527,1716426652451,-505.36681462,0.00021917,2]
[327746528,1716426652460,-151.0,0.00021917,2]
[327746529,1716426652469,-151.0,0.00021917,2]
[327746530,1716426652478,-500.0,0.00021917,2]
[327746531,1716426652487,-500.0,0.00021917,2]
[327746532,1716426652496,-500.0,0.00021917,2]
[327746533,1716426652505,-511.69404239,0.00021917,2]
[327746534,1716426652514,-500.0,0.00021917,2]
[327746535,1716426652523,-500.0,0.00021917,2]
[327746536,1716426652532,-500.0,0.00021917,2]
[327746537,1716426652541,-500.0,0.00021917,2]
[327746538,1716426652550,-500.0,0.00021917,2]
[327746539,1716426652560,-755.48,0.00021917,2]
[327746540,1716426652568,-500.0,0.00021917,2]
[327746541,1716426652578,-500.0,0.00021917,2]
[327746542,1716426652586,-1047.81,0.00021917,2]
[327746543,1716426652595,-500.0,0.00021917,2]
[327746544,1716426652605,-392.53,0.00021917,2]
[327746545,1716426652614,-500.0,0.00021917,2]
[327746546,1716426652623,-501.19936078,0.00021917,2]
[327746547,1716426652633,-500.0,0.00021917,2]
[327746548,1716426652642,-507.62097248,0.00021917,2]
[327746549,1716426652651,-500.0,0.00021917,2]
[327746550,1716426652660,-500.0,0.00021917,2]
[327746551,1716426652669,-500.0,0.00021917,2]
[327746552,1716426652679,-603.97,0.00021917,2]
[327746553,1716426652689,-511.15653135,0.00021917,2]
[327746554,1716426652698,-500.0,0.00021917,2]
[327746555,1716426652707,-500.0,0.00021917,2]
[327746556,1716426652716,-500.0,0.00021917,2]
[327746557,1716426652726,-508.73481973,0.00021917,2]
[327746558,1716426652735,-500.0,0.00021917,2]
[327746559,1716426652747,-500.0,0.00021917,2]
[327746560,1716426652756,-500.0,0.00021917,2]
[327746561,1716426652765,-151.0,0.00021917,2]
[327746562,1716426652775,-500.0,0.00021917,2]
[327746563,1716426652785,-151.0,0.00021917,2]
[327746564,1716426652794,-548.89032132,0.00021917,2]
[327746565,1716426652803,-509.66064081,0.00021917,2]
[327746566,1716426652812,-500.0,0.00021917,2]
[327746567,1716426652825,-315.079495,0.00021917,2]
[327746568,1716426652835,-500.0,0.00021917,2]
[327746569,1716426652843,-315.079495,0.00021917,2]
[327746570,1716426652853,-500.0,0.00021917,2]
[327746571,1716426652863,-500.0,0.00021917,2]
[327746572,1716426652872,-500.0,0.00021917,2]
[327746573,1716426652881,-500.0,0.00021917,2]
[327746574,1716426652890,-500.0,0.00021917,2]
[327746575,1716426652900,-1095.67,0.00021917,2]
[327746576,1716426652909,-500.0,0.00021917,2]
[327746577,1716426652919,-315.079495,0.00021917,2]
[327746578,1716426652928,-315.079495,0.00021917,2]
[327746579,1716426652937,-500.0,0.00021917,2]
[327746580,1716426652946,-500.0,0.00021917,2]
[327746581,1716426652955,-506.51581167,0.00021917,2]
[327746582,1716426652964,-500.0,0.00021917,2]
[327746583,1716426652977,-500.0,0.00021917,2]
[327746584,1716426652997,-500.0,0.00021917,2]
[327746585,1716426653013,-500.0,0.00021917,2]
[327746586,1716426653032,-505.38348164,0.00021917,2]
[327746587,1716426653051,-516.34827036,0.00021917,2]
[327746588,1716426653071,-500.0,0.00021917,2]
[327746589,1716426653088,-1206.72,0.00021917,2]
[327746590,1716426653106,-500.0,0.00021917,2]
[327746591,1716426653120,-500.0,0.00021917,2]
[327746592,1716426653136,-500.0,0.00021917,2]
[327746593,1716426653155,-248.976468,0.00021917,2]
[327746594,1716426653170,-248.976468,0.00021917,2]
[327746595,1716426653183,-248.976468,0.00021917,2]
[327746596,1716426653201,-537.29,0.00021917,2]
[327746597,1716426653215,-512.61387536,0.00021917,2]
[327746598,1716426653232,-500.0,0.00021917,2]
[327746599,1716426653245,-500.0,0.00021917,2]
[327746600,1716426653260,-813.17,0.00021917,2]
[327746601,1716426653277,-500.0,0.00021917,2]
[327746602,1716426653292,-500.0,0.00021917,2]
[327746603,1716426653309,-500.0,0.00021917,2]
[327746604,1716426653325,-248.976468,0.00021917,2]
[327746605,1716426653340,-248.976468,0.00021917,2]
[327746606,1716426653354,-248.976468,0.00021917,2]
[327746607,1716426653370,-510.66433225,0.00021917,2]
[327746608,1716426653384,-654.58,0.00021917,2]
[327746609,1716426653400,-500.0,0.00021917,2]
[327746610,1716426653415,-500.0,0.00021917,2]
[327746611,1716426653429,-500.0,0.00021917,2]
[327746612,1716426653446,-500.0,0.00021917,2]
[327746613,1716426653461,-958.93,0.00021917,2]
[327746614,1716426653479,-500.0,0.00021917,2]
[327746615,1716426653493,-511.71481175,0.00021917,2]
[327746616,1716426653508,-500.0,0.00021917,2]
[327746617,1716426653523,-160.393363,0.00021917,2]
[327746618,1716426653538,-500.0,0.00021917,2]
[327746619,1716426653552,-500.0,0.00021917,2]
[327746620,1716426653567,-500.0,0.00021917,2]
[327746621,1716426653582,-511.53596415,0.00021917,2]
[327746622,1716426653598,-500.0,0.00021917,2]
[327746623,1716426653613,-500.0,0.00021917,2]
[327746624,1716426653628,-500.0,0.00021917,2]
[327746625,1716426653644,-500.0,0.00021917,2]
[327746626,1716426653659,-503.69791374,0.00021917,2]
[327746627,1716426653673,-500.0,0.00021917,2]
[327746628,1716426653687,-500.0,0.00021917,2]
[327746629,1716426653702,-151.0,0.00021917,2]
[327746630,1716426653715,-151.0,0.00021917,2]
[327746631,1716426653730,-729.95,0.00021917,2]
[327746632,1716426653748,-151.0,0.00021917,2]
[327746633,1716426653762,-824.8,0.00021917,2]
[327746634,1716426653777,-500.0,0.00021917,2]
[327746635,1716426653791,-500.0,0.00021917,2]
[327746636,1716426653805,-500.0,0.00021917,2]
[327746637,1716426653822,-510.36,0.00021917,2]
[327746638,1716426653836,-208.795406,0.00021917,2]
[327746639,1716426653851,-500.0,0.00021917,2]
[327746640,1716426653865,-500.0,0.00021917,2]
[327746641,1716426653881,-501.37767258,0.00021917,2]
[327746642,1716426653896,-898.13,0.00021917,2]
[327746643,1716426653910,-500.0,0.00021917,2]
[327746644,1716426653925,-791.66,0.00021917,2]
[327746645,1716426653940,-762.15,0.00021917,2]
[327746646,1716426653954,-509.09594606,0.00021917,2]
[327746647,1716426653969,-593.17079183,0.00021917,2]
[327746648,1716426653984,-500.0,0.00021917,2]
[327746649,1716426653999,-152.739985,0.00021917,2]
[327746650,1716426654014,-500.0,0.00021917,2]
[327746651,1716426654029,-500.0,0.00021917,2]
[327746652,1716426654045,-506.09024626,0.00021917,2]
[327746653,1716426654060,-500.0,0.00021917,2]
[327746654,1716426654074,-500.0,0.00021917,2]
[327746655,1716426654089,-151.0,0.00021917,2]
[327746656,1716426654104,-151.0,0.00021917,2]
[327746657,1716426654120,-151.0,0.00021917,2]
[327746658,1716426654134,-500.0,0.00021917,2]
[327746659,1716426654149,-500.0,0.00021917,2]
[327746660,1716426654163,-500.0,0.00021917,2]
[327746661,1716426654177,-500.0,0.00021917,2]
[327746662,1716426654192,-1053.03,0.00021917,2]
[327746663,1716426654207,-151.0,0.00021917,2]
[327746664,1716426654221,-151.0,0.00021917,2]
[327746665,1716426654236,-151.0,0.00021917,2]
[327746666,1716426654251,-2704.12,0.00021917,2]
[327746667,1716426654265,-500.0,0.00021917,2]
[327746668,1716426654279,-519.2223383,0.00021917,2]
[327746669,1716426654293,-500.0,0.00021917,2]
[327746670,1716426654308,-500.0,0.00021917,2]
[327746671,1716426654505,-500.0,0.00021917,2]
[327746672,1716426654523,-500.0,0.00021917,2]
[327746673,1716426654532,-500.0,0.00021917,2]
[327746674,1716426654542,-500.0,0.00021917,2]
[327746675,1716426654551,-1278.75,0.00021917,2]
[327746676,1716426654560,-534.49608146,0.00021917,2]
[327746677,1716426654569,-500.0,0.00021917,2]
[327746678,1716426654579,-500.0,0.00021917,2]
[327746679,1716426654588,-500.0,0.00021917,2]
[327746680,1716426654597,-500.0,0.00021917,2]
[327746681,1716426654606,-500.0,0.00021917,2]
[327746682,1716426654615,-500.0,0.00021917,2]
[327746683,1716426654624,-500.0,0.00021917,2]
[327746684,1716426654633,-508.75,0.00021917,2]
[327746685,1716426654642,-815.24,0.00021917,2]
[327746686,1716426654651,-500.0,0.00021917,2]